[Event "Early-Titled-Tuesday-Blitz-November-28-2023"]
[Site "Chess.com"]
[Date "2023.11.28"]
[Round "1"]
[White "betta2004"]
[Black "campochess"]
[Result "1-0"]
[WhiteElo "2584"]
[BlackElo "2229"]
[TimeControl "180+1"]
[EndTime "8:07:56 PST"]
[Termination "betta2004 won on time"]

1. d4 {[%clk 0:02:55]} 1... Nf6 {[%clk 0:02:57.8]} 2. Nc3 {[%clk 0:02:55.1]}
2... d5 {[%clk 0:02:56.6]} 3. Bf4 {[%clk 0:02:55.6]} 3... Nbd7 {[%clk
0:02:55.4]} 4. Nb5 {[%clk 0:02:53.6]} 4... e5 {[%clk 0:02:53.5]} 5. dxe5 {[%clk
0:02:53.8]} 5... Nh5 {[%clk 0:02:52.6]} 6. e3 {[%clk 0:02:39.7]} 6... Nxf4
{[%clk 0:02:51.4]} 7. exf4 {[%clk 0:02:40.6]} 7... a6 {[%clk 0:02:51]} 8. Nd4
{[%clk 0:02:35.5]} 8... c5 {[%clk 0:02:46.3]} 9. Ndf3 {[%clk 0:02:30.6]} 9...
Nb6 {[%clk 0:02:46.1]} 10. a4 {[%clk 0:02:29.9]} 10... Bf5 {[%clk 0:02:42.3]}
11. a5 {[%clk 0:02:29.1]} 11... Nc8 {[%clk 0:02:42]} 12. Bd3 {[%clk 0:02:26.8]}
12... Ne7 {[%clk 0:02:34.6]} 13. Ne2 {[%clk 0:02:25.1]} 13... Bxd3 {[%clk
0:02:32.8]} 14. Qxd3 {[%clk 0:02:26]} 14... Qd7 {[%clk 0:02:31.4]} 15. Nc3
{[%clk 0:02:21.6]} 15... Rd8 {[%clk 0:02:30.6]} 16. O-O {[%clk 0:02:21]} 16...
Qg4 {[%clk 0:02:29.5]} 17. g3 {[%clk 0:02:19.8]} 17... h6 {[%clk 0:02:27.5]} 18.
Kg2 {[%clk 0:02:19.2]} 18... c4 {[%clk 0:02:18.9]} 19. Qd2 {[%clk 0:02:11.8]}
19... Qc8 {[%clk 0:02:00.6]} 20. Nd4 {[%clk 0:02:10]} 20... Qc5 {[%clk
0:01:47.8]} 21. Na4 {[%clk 0:02:05]} 21... Qc7 {[%clk 0:01:45.2]} 22. Nb6 {[%clk
0:02:03.9]} 22... Nc6 {[%clk 0:01:41.1]} 23. e6 {[%clk 0:02:00.9]} 23... Bc5
{[%clk 0:01:34.1]} 24. exf7+ {[%clk 0:01:53]} 24... Kxf7 {[%clk 0:01:33.9]} 25.
Nf3 {[%clk 0:01:23.9]} 25... Bxb6 {[%clk 0:01:27.6]} 26. axb6 {[%clk 0:01:24.8]}
26... Qxb6 {[%clk 0:01:27]} 27. f5 {[%clk 0:01:24.3]} 27... d4 {[%clk 0:01:18]}
28. Rfe1 {[%clk 0:01:21.6]} 28... Rhe8 {[%clk 0:01:15.3]} 29. Qf4 {[%clk
0:01:19]} 29... Kg8 {[%clk 0:01:12.6]} 30. f6 {[%clk 0:01:17.3]} 30... Rf8
{[%clk 0:00:58.8]} 31. Re6 {[%clk 0:01:10.3]} 31... Qxb2 {[%clk 0:00:56.6]} 32.
Rae1 {[%clk 0:01:03.1]} 32... d3 {[%clk 0:00:54.9]} 33. cxd3 {[%clk 0:00:53.5]}
33... cxd3 {[%clk 0:00:53.8]} 34. Qc4 {[%clk 0:00:39.9]} 34... Kh8 {[%clk
0:00:48.4]} 35. fxg7+ {[%clk 0:00:37.9]} 35... Qxg7 {[%clk 0:00:47.2]} 36. Nh4
{[%clk 0:00:29.9]} 36... Rf6 {[%clk 0:00:41.5]} 37. Re8+ {[%clk 0:00:26.9]}
37... Rf8 {[%clk 0:00:34.7]} 38. Rxf8+ {[%clk 0:00:21.9]} 38... Rxf8 {[%clk
0:00:32.1]} 39. Qxd3 {[%clk 0:00:22.5]} 39... Kg8 {[%clk 0:00:18.4]} 40. Re6
{[%clk 0:00:20.2]} 40... Rf6 {[%clk 0:00:10.3]} 41. Re8+ {[%clk 0:00:19.9]}
41... Rf8 {[%clk 0:00:10.3]} 42. Nf5 {[%clk 0:00:16.1]} 42... Qf6 {[%clk
0:00:08.6]} 43. Qd5+ {[%clk 0:00:13.6]} 43... Kh7 {[%clk 0:00:08.7]} 44. Rxf8
{[%clk 0:00:03.6]} 44... Qxf8 {[%clk 0:00:08.3]} 45. Qe4 {[%clk 0:00:04.2]}
45... Kh8 {[%clk 0:00:07]} 46. Ne3 {[%clk 0:00:02.9]} 46... Qf6 {[%clk
0:00:05.7]} 47. Qd5 {[%clk 0:00:03]} 47... Qe7 {[%clk 0:00:03.3]} 48. Qf5 {[%clk
0:00:03]} 48... Qe5 {[%clk 0:00:02.5]} 49. Qf7 {[%clk 0:00:02.8]} 1-0

[Event "Early-Titled-Tuesday-Blitz-November-28-2023"]
[Site "Chess.com"]
[Date "2023.11.28"]
[Round "1"]
[White "chesstrainer2042"]
[Black "Witik"]
[Result "0-1"]
[WhiteElo "2429"]
[BlackElo "2796"]
[TimeControl "180+1"]
[EndTime "8:07:57 PST"]
[Termination "Witik won on time"]

1. d4 {[%clk 0:03:00.6]} 1... Nf6 {[%clk 0:02:59.8]} 2. Nf3 {[%clk 0:03:00.6]}
2... g6 {[%clk 0:02:59.6]} 3. Bg5 {[%clk 0:02:59.2]} 3... Bg7 {[%clk 0:02:59.7]}
4. Nbd2 {[%clk 0:02:59.9]} 4... d5 {[%clk 0:02:59.9]} 5. e3 {[%clk 0:02:58.3]}
5... O-O {[%clk 0:02:59.8]} 6. Bd3 {[%clk 0:02:58.7]} 6... Nbd7 {[%clk
0:02:59.7]} 7. O-O {[%clk 0:02:57.6]} 7... c5 {[%clk 0:03:00]} 8. c3 {[%clk
0:02:57.2]} 8... Re8 {[%clk 0:03:00.5]} 9. h3 {[%clk 0:02:54.3]} 9... e5 {[%clk
0:02:59.8]} 10. dxe5 {[%clk 0:02:54.3]} 10... Nxe5 {[%clk 0:02:59.9]} 11. Nxe5
{[%clk 0:02:54.6]} 11... Rxe5 {[%clk 0:03:00.6]} 12. Bh4 {[%clk 0:02:55.3]}
12... Re8 {[%clk 0:02:58.7]} 13. Qc2 {[%clk 0:02:52.6]} 13... Bd7 {[%clk
0:02:37.5]} 14. Rad1 {[%clk 0:02:42.8]} 14... Bc6 {[%clk 0:02:33.6]} 15. Rfe1
{[%clk 0:02:42]} 15... Qb6 {[%clk 0:02:13.8]} 16. b3 {[%clk 0:02:21]} 16... Qa5
{[%clk 0:02:06.5]} 17. c4 {[%clk 0:02:09.1]} 17... d4 {[%clk 0:01:18.3]} 18.
exd4 {[%clk 0:01:58.4]} 18... cxd4 {[%clk 0:01:18.7]} 19. Bxf6 {[%clk
0:01:36.3]} 19... Bxf6 {[%clk 0:01:17.8]} 20. Be4 {[%clk 0:01:36.9]} 20... Qc3
{[%clk 0:00:43.9]} 21. Qb1 {[%clk 0:01:19.4]} 21... d3 {[%clk 0:00:33]} 22. Bxc6
{[%clk 0:01:09.5]} 22... Rxe1+ {[%clk 0:00:31]} 23. Rxe1 {[%clk 0:01:09.7]}
23... Qxd2 {[%clk 0:00:31.6]} 24. Bd5 {[%clk 0:00:56.2]} 24... Bd4 {[%clk
0:00:28.8]} 25. Rf1 {[%clk 0:00:55.6]} 25... Re8 {[%clk 0:00:27.4]} 26. Qd1
{[%clk 0:00:47.9]} 26... Bxf2+ {[%clk 0:00:24]} 27. Kh1 {[%clk 0:00:45]} 27...
Qxd1 {[%clk 0:00:13.5]} 28. Rxd1 {[%clk 0:00:44.5]} 28... Bg3 {[%clk 0:00:14.4]}
29. Rf1 {[%clk 0:00:21.6]} 29... Re7 {[%clk 0:00:10.2]} 30. Kg1 {[%clk
0:00:16.2]} 30... d2 {[%clk 0:00:10.1]} 31. Bf3 {[%clk 0:00:16.9]} 31... Re1
{[%clk 0:00:09.1]} 32. c5 {[%clk 0:00:14.9]} 32... Be5 {[%clk 0:00:05.6]} 33. g4
{[%clk 0:00:09.6]} 33... Bd4+ {[%clk 0:00:05.6]} 34. Kg2 {[%clk 0:00:09.4]}
34... Bxc5 {[%clk 0:00:06.1]} 35. Bd1 {[%clk 0:00:09]} 35... Kg7 {[%clk
0:00:05.6]} 36. a4 {[%clk 0:00:06.7]} 36... a5 {[%clk 0:00:04.4]} 37. h4 {[%clk
0:00:05.1]} 37... h6 {[%clk 0:00:04]} 38. h5 {[%clk 0:00:05.2]} 38... gxh5
{[%clk 0:00:03.9]} 39. gxh5 {[%clk 0:00:05.6]} 39... f5 {[%clk 0:00:04.4]} 40.
Bf3 {[%clk 0:00:04.3]} 40... b6 {[%clk 0:00:04.2]} 41. Bd1 {[%clk 0:00:04.3]}
41... Kf6 {[%clk 0:00:03.9]} 42. Bc2 {[%clk 0:00:03.6]} 42... Re2+ {[%clk
0:00:03.8]} 43. Kf3 {[%clk 0:00:02.1]} 43... Rh2 {[%clk 0:00:03.9]} 0-1

[Event "Early-Titled-Tuesday-Blitz-November-28-2023"]
[Site "Chess.com"]
[Date "2023.11.28"]
[Round "1"]
[White "MaxLeto"]
[Black "Pasmendjambvirgulptipon98"]
[Result "1-0"]
[WhiteElo "2554"]
[BlackElo "2173"]
[TimeControl "180+1"]
[EndTime "8:07:57 PST"]
[Termination "MaxLeto won by resignation"]

1. g4 {[%clk 0:02:07.8]} 1... d5 {[%clk 0:02:43.5]} 2. Bg2 {[%clk 0:02:05.9]}
2... c6 {[%clk 0:02:32.3]} 3. h3 {[%clk 0:01:47.9]} 3... Nd7 {[%clk 0:02:28.9]}
4. d4 {[%clk 0:01:47.3]} 4... e6 {[%clk 0:02:24.6]} 5. Nf3 {[%clk 0:01:45.8]}
5... c5 {[%clk 0:02:24.6]} 6. c3 {[%clk 0:01:44.6]} 6... Ngf6 {[%clk 0:02:23.5]}
7. Bf4 {[%clk 0:01:39.1]} 7... Qb6 {[%clk 0:02:16.4]} 8. Qb3 {[%clk 0:01:38.5]}
8... c4 {[%clk 0:02:15.6]} 9. Qc2 {[%clk 0:01:36.7]} 9... Bd6 {[%clk 0:02:02.9]}
10. Bxd6 {[%clk 0:01:26.9]} 10... Qxd6 {[%clk 0:02:03.8]} 11. Nbd2 {[%clk
0:01:27.6]} 11... O-O {[%clk 0:01:40.5]} 12. O-O-O {[%clk 0:01:10.4]} 12... b5
{[%clk 0:01:27.9]} 13. e4 {[%clk 0:01:10.3]} 13... Qf4 {[%clk 0:01:19.1]} 14. e5
{[%clk 0:00:36.3]} 14... Ne4 {[%clk 0:01:18.8]} 15. Rhf1 {[%clk 0:00:32.9]}
15... a5 {[%clk 0:01:16.5]} 16. Kb1 {[%clk 0:00:33]} 16... Nxd2+ {[%clk
0:01:11.4]} 17. Qxd2 {[%clk 0:00:33.5]} 17... Qxd2 {[%clk 0:01:07.2]} 18. Nxd2
{[%clk 0:00:34.4]} 18... Rb8 {[%clk 0:01:00.2]} 19. f4 {[%clk 0:00:31.3]} 19...
b4 {[%clk 0:00:57]} 20. Kc2 {[%clk 0:00:24.7]} 20... Nb6 {[%clk 0:00:52.3]} 21.
Rb1 {[%clk 0:00:20.7]} 21... Bd7 {[%clk 0:00:51.6]} 22. Nf3 {[%clk 0:00:19]}
22... Ba4+ {[%clk 0:00:30.6]} 23. Kd2 {[%clk 0:00:18.9]} 23... Bb5 {[%clk
0:00:26.9]} 24. Ng1 {[%clk 0:00:16.3]} 24... a4 {[%clk 0:00:26.6]} 25. Ne2
{[%clk 0:00:04.7]} 25... bxc3+ {[%clk 0:00:18.3]} 26. bxc3 {[%clk 0:00:04.3]}
26... Bc6 {[%clk 0:00:18.1]} 27. Rb4 {[%clk 0:00:04.7]} 27... Nd7 {[%clk
0:00:15.4]} 28. Rfb1 {[%clk 0:00:05.4]} 28... Rxb4 {[%clk 0:00:14.2]} 29. Rxb4
{[%clk 0:00:06.3]} 29... Rb8 {[%clk 0:00:14.2]} 30. Rxb8+ {[%clk 0:00:06.6]}
30... Nxb8 {[%clk 0:00:15.1]} 31. Kc1 {[%clk 0:00:07]} 31... Kf8 {[%clk
0:00:15.1]} 32. Kb2 {[%clk 0:00:07.6]} 32... Ke7 {[%clk 0:00:13.5]} 33. Ka3
{[%clk 0:00:08.3]} 33... Na6 {[%clk 0:00:14.3]} 34. Bf3 {[%clk 0:00:07.6]} 34...
f6 {[%clk 0:00:13]} 35. Ng3 {[%clk 0:00:07.7]} 35... g6 {[%clk 0:00:11.2]} 36.
Bd1 {[%clk 0:00:06.7]} 36... fxe5 {[%clk 0:00:10.6]} 37. fxe5 {[%clk 0:00:06.6]}
37... Nc7 {[%clk 0:00:08.4]} 38. Bxa4 {[%clk 0:00:06.9]} 38... Bd7 {[%clk
0:00:03.4]} 39. Bxd7 {[%clk 0:00:06.3]} 39... Kxd7 {[%clk 0:00:04.3]} 40. Kb4
{[%clk 0:00:06.8]} 40... Kc6 {[%clk 0:00:05]} 41. a4 {[%clk 0:00:07.5]} 41...
Na6+ {[%clk 0:00:05.5]} 42. Ka5 {[%clk 0:00:07.5]} 42... Nb8 {[%clk 0:00:04.6]}
43. Ne2 {[%clk 0:00:08.4]} 43... Kb7 {[%clk 0:00:04.1]} 44. Kb5 {[%clk 0:00:08]}
44... Nc6 {[%clk 0:00:03.3]} 45. a5 {[%clk 0:00:08.1]} 45... Na7+ {[%clk
0:00:03.4]} 46. Kc5 {[%clk 0:00:08.2]} 46... Nc8 {[%clk 0:00:03.6]} 47. Nf4
{[%clk 0:00:07.8]} 47... Ka6 {[%clk 0:00:02.4]} 48. Nxe6 {[%clk 0:00:08.3]}
48... Kxa5 {[%clk 0:00:03]} 49. Kxd5 {[%clk 0:00:08]} 49... Nb6+ {[%clk
0:00:03.2]} 50. Kc5 {[%clk 0:00:08.1]} 50... Nd7+ {[%clk 0:00:02.9]} 51. Kxc4
{[%clk 0:00:08.2]} 1-0

[Event "Early-Titled-Tuesday-Blitz-November-28-2023"]
[Site "Chess.com"]
[Date "2023.11.28"]
[Round "1"]
[White "Quattroporte300"]
[Black "Roman_Ovetchkin"]
[Result "1-0"]
[WhiteElo "2384"]
[BlackElo "2654"]
[TimeControl "180+1"]
[EndTime "8:07:58 PST"]
[Termination "Quattroporte300 won on time"]

1. e4 {[%clk 0:02:56]} 1... c6 {[%clk 0:02:59.2]} 2. d4 {[%clk 0:02:52.8]} 2...
d5 {[%clk 0:03:00.1]} 3. exd5 {[%clk 0:02:53.2]} 3... cxd5 {[%clk 0:03:00.1]} 4.
Bd3 {[%clk 0:02:53.8]} 4... Nc6 {[%clk 0:02:59.9]} 5. c3 {[%clk 0:02:54.1]} 5...
Qc7 {[%clk 0:03:00.1]} 6. Ne2 {[%clk 0:02:51.2]} 6... Bg4 {[%clk 0:02:59.2]} 7.
O-O {[%clk 0:02:51.4]} 7... e6 {[%clk 0:02:58.8]} 8. Qe1 {[%clk 0:02:51.1]} 8...
Bxe2 {[%clk 0:02:41.6]} 9. Qxe2 {[%clk 0:02:51.1]} 9... Bd6 {[%clk 0:02:40.8]}
10. g3 {[%clk 0:02:49.9]} 10... Nf6 {[%clk 0:02:29.8]} 11. Nd2 {[%clk
0:02:45.6]} 11... O-O {[%clk 0:02:24.7]} 12. Nf3 {[%clk 0:02:45.6]} 12... Nd7
{[%clk 0:02:14.9]} 13. Re1 {[%clk 0:02:40]} 13... Rfe8 {[%clk 0:02:11.5]} 14.
Kg2 {[%clk 0:02:24.8]} 14... Rab8 {[%clk 0:02:08.4]} 15. h4 {[%clk 0:02:22]}
15... a6 {[%clk 0:01:59.4]} 16. h5 {[%clk 0:02:10.7]} 16... h6 {[%clk 0:01:40]}
17. Bc2 {[%clk 0:01:13.2]} 17... e5 {[%clk 0:01:25.8]} 18. dxe5 {[%clk
0:01:12.6]} 18... Ncxe5 {[%clk 0:01:20.6]} 19. Nxe5 {[%clk 0:01:05.8]} 19...
Rxe5 {[%clk 0:01:13.3]} 20. Qd1 {[%clk 0:01:03.3]} 20... Qc6 {[%clk 0:01:07.3]}
21. Rxe5 {[%clk 0:00:47.8]} 21... Bxe5 {[%clk 0:01:06.6]} 22. Qf3 {[%clk
0:00:43]} 22... Re8 {[%clk 0:00:59.2]} 23. Bd2 {[%clk 0:00:33.1]} 23... Nf6
{[%clk 0:00:55.7]} 24. Re1 {[%clk 0:00:32.4]} 24... b5 {[%clk 0:00:44.6]} 25.
Bb3 {[%clk 0:00:24.9]} 25... a5 {[%clk 0:00:34.8]} 26. Kh2 {[%clk 0:00:22]}
26... a4 {[%clk 0:00:34.6]} 27. Bc2 {[%clk 0:00:21.3]} 27... Qc4 {[%clk
0:00:28.9]} 28. Qf5 {[%clk 0:00:19.7]} 28... Kf8 {[%clk 0:00:11.6]} 29. Kg2
{[%clk 0:00:17.7]} 29... Qc7 {[%clk 0:00:11.5]} 30. Bd3 {[%clk 0:00:15.7]} 30...
b4 {[%clk 0:00:09.5]} 31. cxb4 {[%clk 0:00:14.8]} 31... Bxb2 {[%clk 0:00:09.4]}
32. Bf4 {[%clk 0:00:14.8]} 32... Qc6 {[%clk 0:00:07]} 33. Rxe8+ {[%clk
0:00:14.6]} 33... Nxe8 {[%clk 0:00:06.7]} 34. Qh7 {[%clk 0:00:13.2]} 34... Nf6
{[%clk 0:00:06.7]} 35. Qh8+ {[%clk 0:00:12.8]} 35... Ke7 {[%clk 0:00:07.1]} 36.
Qb8 {[%clk 0:00:09.8]} 36... d4+ {[%clk 0:00:07.5]} 37. f3 {[%clk 0:00:09.8]}
37... a3 {[%clk 0:00:07.3]} 38. Qe5+ {[%clk 0:00:10]} 38... Kf8 {[%clk
0:00:07.2]} 39. Qb8+ {[%clk 0:00:08.5]} 39... Ne8 {[%clk 0:00:07.1]} 40. Bb5
{[%clk 0:00:07.9]} 40... Qc2+ {[%clk 0:00:07]} 41. Kh3 {[%clk 0:00:08.4]} 41...
Qf5+ {[%clk 0:00:06.9]} 42. g4 {[%clk 0:00:08.9]} 42... Qe6 {[%clk 0:00:07.1]}
43. Qxe8+ {[%clk 0:00:06.1]} 43... Qxe8 {[%clk 0:00:07]} 44. Bxe8 {[%clk
0:00:06.3]} 44... Kxe8 {[%clk 0:00:07.1]} 45. Kg2 {[%clk 0:00:05.6]} 45... Kd7
{[%clk 0:00:07.1]} 46. Kf2 {[%clk 0:00:06.2]} 46... Kc6 {[%clk 0:00:07.5]} 47.
Ke2 {[%clk 0:00:06.6]} 47... Kb5 {[%clk 0:00:07.4]} 48. Kd3 {[%clk 0:00:06.2]}
48... Kxb4 {[%clk 0:00:05.8]} 49. Bd6+ {[%clk 0:00:06.8]} 49... Kb5 {[%clk
0:00:03.9]} 50. Bf8 {[%clk 0:00:07.5]} 50... Bc1 {[%clk 0:00:01.6]} 51. Bxg7
{[%clk 0:00:07.7]} 1-0

[Event "Early-Titled-Tuesday-Blitz-November-28-2023"]
[Site "Chess.com"]
[Date "2023.11.28"]
[Round "1"]
[White "sofaceindisguise"]
[Black "brunoo2003"]
[Result "1-0"]
[WhiteElo "2802"]
[BlackElo "2451"]
[TimeControl "180+1"]
[EndTime "8:08:00 PST"]
[Termination "sofaceindisguise won by resignation"]

1. d4 {[%clk 0:02:49.7]} 1... Nf6 {[%clk 0:02:57.6]} 2. c4 {[%clk 0:02:50.2]}
2... e6 {[%clk 0:02:57.8]} 3. Nc3 {[%clk 0:02:50.4]} 3... Bb4 {[%clk 0:02:57.6]}
4. Qc2 {[%clk 0:02:50.9]} 4... O-O {[%clk 0:02:54.9]} 5. a3 {[%clk 0:02:48.7]}
5... Bxc3+ {[%clk 0:02:54.6]} 6. Qxc3 {[%clk 0:02:49.4]} 6... d5 {[%clk
0:02:55.5]} 7. Bg5 {[%clk 0:02:49]} 7... c5 {[%clk 0:02:49.2]} 8. dxc5 {[%clk
0:02:47.5]} 8... d4 {[%clk 0:02:50.1]} 9. Qd2 {[%clk 0:02:39.1]} 9... Nc6 {[%clk
0:02:41.8]} 10. b4 {[%clk 0:02:38.8]} 10... e5 {[%clk 0:02:40]} 11. g3 {[%clk
0:02:31.8]} 11... Be6 {[%clk 0:02:32]} 12. Bg2 {[%clk 0:02:30]} 12... Bxc4
{[%clk 0:02:30.8]} 13. Nf3 {[%clk 0:02:26.9]} 13... e4 {[%clk 0:02:25.8]} 14.
Nh4 {[%clk 0:02:26.5]} 14... Re8 {[%clk 0:02:13.2]} 15. O-O {[%clk 0:02:25.5]}
15... h6 {[%clk 0:02:12.6]} 16. Bxf6 {[%clk 0:02:02.1]} 16... Qxf6 {[%clk
0:02:09.9]} 17. Rac1 {[%clk 0:01:50.6]} 17... Bd5 {[%clk 0:01:39.9]} 18. b5
{[%clk 0:01:40.1]} 18... Ne5 {[%clk 0:01:35.8]} 19. Qxd4 {[%clk 0:01:14.5]}
19... Rad8 {[%clk 0:01:29.1]} 20. Qc3 {[%clk 0:01:05.1]} 20... g5 {[%clk
0:01:23.7]} 21. f4 {[%clk 0:01:05.3]} 21... gxh4 {[%clk 0:01:05]} 22. fxe5
{[%clk 0:01:04.7]} 22... Qxe5 {[%clk 0:01:05.8]} 23. Qe3 {[%clk 0:00:58.5]}
23... hxg3 {[%clk 0:00:58.5]} 24. hxg3 {[%clk 0:00:59.4]} 24... Qg5 {[%clk
0:00:58.1]} 25. Rf4 {[%clk 0:00:59.3]} 25... Kh8 {[%clk 0:00:43.9]} 26. Kf2
{[%clk 0:00:55.2]} 26... Rg8 {[%clk 0:00:42]} 27. Rh1 {[%clk 0:00:55.8]} 27...
Rg6 {[%clk 0:00:36.4]} 28. Rhh4 {[%clk 0:00:37.3]} 28... Rf6 {[%clk 0:00:34.7]}
29. Rxf6 {[%clk 0:00:36.2]} 29... Qxf6+ {[%clk 0:00:34.3]} 30. Kg1 {[%clk
0:00:31.9]} 30... Kg7 {[%clk 0:00:32]} 31. Rg4+ {[%clk 0:00:31.7]} 31... Kf8
{[%clk 0:00:31.6]} 32. Rf4 {[%clk 0:00:31.5]} 32... Qg5 {[%clk 0:00:24.6]} 33.
a4 {[%clk 0:00:30.1]} 33... Be6 {[%clk 0:00:21]} 34. Bxe4 {[%clk 0:00:27.2]}
34... Rd1+ {[%clk 0:00:21.3]} 35. Kf2 {[%clk 0:00:27]} 35... Ke8 {[%clk
0:00:06.9]} 36. c6 {[%clk 0:00:26.4]} 36... bxc6 {[%clk 0:00:06.6]} 37. bxc6
{[%clk 0:00:26]} 37... Qe5 {[%clk 0:00:01.1]} 38. Qxa7 {[%clk 0:00:20.7]} 38...
Qa1 {[%clk 0:00:01.4]} 39. Qb8+ {[%clk 0:00:16.1]} 39... Ke7 {[%clk 0:00:02]}
40. Qc7+ {[%clk 0:00:16.1]} 40... Kf8 {[%clk 0:00:02.7]} 41. Qb8+ {[%clk
0:00:11.5]} 41... Kg7 {[%clk 0:00:03.3]} 42. Bg2 {[%clk 0:00:11.5]} 42... Rg1
{[%clk 0:00:02.9]} 43. Qb4 {[%clk 0:00:10.8]} 43... Rxg2+ {[%clk 0:00:02.2]} 44.
Kxg2 {[%clk 0:00:10.6]} 44... Bd5+ {[%clk 0:00:03.1]} 45. Kf2 {[%clk 0:00:10.2]}
45... Qh1 {[%clk 0:00:02.1]} 46. Qd4+ {[%clk 0:00:10.5]} 46... Kf8 {[%clk
0:00:02.3]} 47. Qe3 {[%clk 0:00:09.4]} 47... Qg2+ {[%clk 0:00:02.4]} 48. Ke1
{[%clk 0:00:10.1]} 48... Qh1+ {[%clk 0:00:03.3]} 49. Rf1 {[%clk 0:00:10.2]}
49... Qh5 {[%clk 0:00:03.6]} 50. Qc5+ {[%clk 0:00:10.5]} 50... Kg7 {[%clk
0:00:03]} 51. c7 {[%clk 0:00:11.2]} 51... Qg5 {[%clk 0:00:03]} 52. c8=Q {[%clk
0:00:10.7]} 52... Qc1+ {[%clk 0:00:03.9]} 53. Qxc1 {[%clk 0:00:10.5]} 1-0

[Event "Early-Titled-Tuesday-Blitz-November-28-2023"]
[Site "Chess.com"]
[Date "2023.11.28"]
[Round "1"]
[White "colegiodemadrid"]
[Black "Chessmissile07"]
[Result "0-1"]
[WhiteElo "2489"]
[BlackElo "2865"]
[TimeControl "180+1"]
[EndTime "8:08:03 PST"]
[Termination "Chessmissile07 won on time"]

1. d4 {[%clk 0:02:57.2]} 1... a6 {[%clk 0:02:59.9]} 2. e4 {[%clk 0:02:56]} 2...
e6 {[%clk 0:02:59.6]} 3. Nc3 {[%clk 0:02:55.1]} 3... d5 {[%clk 0:02:58.6]} 4. e5
{[%clk 0:02:54.7]} 4... c5 {[%clk 0:02:57.9]} 5. Nf3 {[%clk 0:02:51]} 5... Nc6
{[%clk 0:02:57.2]} 6. Ne2 {[%clk 0:02:46.6]} 6... cxd4 {[%clk 0:02:53.5]} 7.
Nexd4 {[%clk 0:02:46.1]} 7... Bc5 {[%clk 0:02:53.2]} 8. c3 {[%clk 0:02:45.9]}
8... Nge7 {[%clk 0:02:52.6]} 9. Bd3 {[%clk 0:02:41.7]} 9... Qc7 {[%clk
0:02:51.8]} 10. Qe2 {[%clk 0:02:40.8]} 10... Ng6 {[%clk 0:02:50.3]} 11. Nxc6
{[%clk 0:02:38.3]} 11... bxc6 {[%clk 0:02:48.7]} 12. O-O {[%clk 0:02:39.1]}
12... a5 {[%clk 0:02:47.1]} 13. h4 {[%clk 0:02:38.8]} 13... Ne7 {[%clk
0:02:37.5]} 14. h5 {[%clk 0:02:25.5]} 14... h6 {[%clk 0:02:37.6]} 15. Bf4 {[%clk
0:02:23.9]} 15... Qb6 {[%clk 0:02:37.5]} 16. Bg3 {[%clk 0:02:20.7]} 16... Ba6
{[%clk 0:02:36.3]} 17. Bxa6 {[%clk 0:02:20.4]} 17... Qxa6 {[%clk 0:02:37.2]} 18.
Qd2 {[%clk 0:02:18.1]} 18... Qb6 {[%clk 0:02:33.4]} 19. Bf4 {[%clk 0:02:17.3]}
19... O-O {[%clk 0:02:14.5]} 20. Rab1 {[%clk 0:02:17.2]} 20... Rfb8 {[%clk
0:02:06.6]} 21. g4 {[%clk 0:02:12.2]} 21... Kf8 {[%clk 0:01:43.5]} 22. Kg2
{[%clk 0:02:03.6]} 22... Ke8 {[%clk 0:01:43.3]} 23. Bg3 {[%clk 0:02:01.4]} 23...
a4 {[%clk 0:01:38.2]} 24. Bf4 {[%clk 0:01:59.3]} 24... Ra5 {[%clk 0:01:37.5]}
25. b4 {[%clk 0:01:39.9]} 25... axb3 {[%clk 0:01:38.4]} 26. axb3 {[%clk
0:01:40.6]} 26... Ba3 {[%clk 0:01:31.4]} 27. b4 {[%clk 0:01:37.3]} 27... Raa8
{[%clk 0:01:31.2]} 28. Be3 {[%clk 0:01:35.2]} 28... Qb5 {[%clk 0:01:31]} 29. Bc5
{[%clk 0:01:28.3]} 29... Qc4 {[%clk 0:01:12.3]} 30. Nd4 {[%clk 0:01:26.1]} 30...
Ra6 {[%clk 0:01:12.5]} 31. g5 {[%clk 0:01:19.9]} 31... Nf5 {[%clk 0:01:08.3]}
32. Nxf5 {[%clk 0:01:18.2]} 32... exf5 {[%clk 0:01:08.4]} 33. Bd4 {[%clk
0:01:10]} 33... c5 {[%clk 0:00:33.3]} 34. bxc5 {[%clk 0:01:09.8]} 34... Rxb1
{[%clk 0:00:34.2]} 35. Rxb1 {[%clk 0:01:09.8]} 35... Bxc5 {[%clk 0:00:34.9]} 36.
Rb8+ {[%clk 0:01:07.3]} 36... Kd7 {[%clk 0:00:34.4]} 37. Rb7+ {[%clk 0:01:06.3]}
37... Ke8 {[%clk 0:00:29.1]} 38. Rb8+ {[%clk 0:00:59.3]} 38... Kd7 {[%clk
0:00:28.9]} 39. Qf4 {[%clk 0:00:58.7]} 39... Kc7 {[%clk 0:00:20.3]} 40. Rg8
{[%clk 0:00:34.1]} 40... Ra1 {[%clk 0:00:19.5]} 41. e6+ {[%clk 0:00:18.9]} 41...
Bd6 {[%clk 0:00:19.5]} 42. Bb6+ {[%clk 0:00:18.3]} 42... Kxb6 {[%clk 0:00:11.4]}
43. Qxd6+ {[%clk 0:00:17.9]} 43... Ka7 {[%clk 0:00:04.6]} 44. Qb8+ {[%clk
0:00:11.5]} 44... Ka6 {[%clk 0:00:04.7]} 45. Qa8+ {[%clk 0:00:11.2]} 45... Kb6
{[%clk 0:00:04.2]} 46. Rb8+ {[%clk 0:00:11.7]} 46... Kc7 {[%clk 0:00:04.5]} 47.
Qb7+ {[%clk 0:00:10.8]} 47... Kd6 {[%clk 0:00:04.9]} 48. Qb6+ {[%clk 0:00:04.6]}
48... Ke5 {[%clk 0:00:05.4]} 49. Qe3+ {[%clk 0:00:05]} 49... Kd6 {[%clk
0:00:05.8]} 50. Rd8+ {[%clk 0:00:03.5]} 50... Kc7 {[%clk 0:00:05.9]} 0-1